[Event "European School-ch 2019"]
[Site "Mamaia"]
[Date "2019.06.02"]
[Round "3.31"]
[White "Tutunculer, Cagan"]
[Black "Bayramli, Rafael"]
[Result "1-0"]
[ECO "A36"]
[WhiteElo "1193"]
[BlackElo "1331"]
[Annotator "NA"]
[PlyCount "118"]
[EventDate "2019.05.31"]
[EventType "swiss"]
[EventCountry "ROU"]
[SourceTitle "playchess.com"]
[Source "ChessBase"]
[SourceQuality "1"]
[TimeControl "40/5400+30:1800+30"]

1. c4 {[%emt 0:00:00]} c5 {[%emt 0:00:00]} 2. Nc3 {[%emt 0:00:00]} g6 {[%emt 0:00:00]} 3. g3 {[%emt 0:00:08]} Bg7 {[%emt 0:00:06]} 4. Bg2 {[%emt 0:00:21]} Nc6 {[%emt 0:00:10]} 5. e4 {[%emt 0:00:28]} d6 {[%emt 0:00:13]} 6. d3 {[%emt 0:00:26]} e6 {[%emt 0:00:45]} 7. Nge2 {[%emt 0:00:55]} Nge7 {[%emt 0:00:13]} 8. O-O {[%emt 0:00:30]} Nd4 {[%emt 0:00:01]} 9. Be3 {[%emt 0:01:19]} Nec6 {[%emt 0:00:01]} 10. Qd2 {[%emt 0:00:58]} O-O {[%emt 0:00:05]} 11. Bh6 {[%emt 0:01:14]} a6 {[%emt 0:00:01]} 12. Bxg7 {[%emt 0:00:59]} Kxg7 {[%emt 0:00:01]} 13. Nxd4 {[%emt 0:01:10]} Nxd4 {[%emt 0:00:02]} 14. Ne2 {[%emt 0:00:55]} e5 {[%emt 0:00:47]} 15. Nxd4 {[%emt 0:00:38]} exd4 {[%emt 0:00:12]} 16. f4 {[%emt 0:01:51]} Qc7 {[%emt 0:07:58]} 17. b4 {[%emt 0:04:17]} Bd7 {[%emt 0:03:40]} 18. a3 {[%emt 0:03:15]} Rab8 {[%emt 0:00:18]} 19. f5 {[%emt 0:01:27]} f6 {[%emt 0:02:23]} 20. Rac1 {[%emt 0:01:30]} Qd8 {[%emt 0:07:34]} 21. h4 {[%emt 0:01:39]} b6 {[%emt 0:09:06]} 22. g4 {[%emt 0:01:23]} Qe7 {[%emt 0:04:03]} 23. Rf3 {[%emt 0:01:56]} Qe5 {[%emt 0:01:22]} 24. Rcf1 {[%emt 0:01:35]} b5 {[%emt 0:06:03]} 25. Rc1 {[%emt 0:04:57]} Rfc8 {[%emt 0:04:53]} 26. Bh3 {[%emt 0:09:23]} bxc4 {[%emt 0:00:46]} 27. Rxc4 Bb5 28. Rc1 {[%emt 0:02:29]} c4 {[%emt 0:01:49]} 29. g5 {[%emt 0:06:05]} cxd3 {[%emt 0:20:01]} 30. fxg6 {[%emt 0:00:32]} Rxc1+ {[%emt 0:00:42]} 31. Qxc1 {[%emt 0:00:21]} d5 {[%emt 0:02:07]} 32. gxf6+ {[%emt 0:03:49]} Kxg6 {[%emt 0:01:24]} 33. Bf5+ {[%emt 0:04:24]} Kf7 {[%emt 0:01:51]} 34. Qh6 {[%emt 0:00:25]} Rg8+ {[%emt 0:02:52]} 35. Kh1 {[%emt 0:00:17]} Ke8 {[%emt 0:10:42]} 36. f7+ {[%emt 0:06:51]} Kxf7 {[%emt 0:03:20]} 37. Bxh7+ {[%emt 0:00:14]} Ke7 {[%emt 0:01:20]} 38. Bxg8 {[%emt 0:00:08]} Qxe4 {[%emt 0:00:06]} 39. Qh7+ {[%emt 0:00:19]} Qxh7 {[%emt 0:01:03]} 40. Bxh7 {[%emt 0:00:00]} d2 {[%emt 0:00:00]} 41. Bc2 {[%emt 0:00:33]} Be2 {[%emt 0:00:45]} 42. Rf2 {[%emt 0:01:02]} d3 {[%emt 0:02:07]} 43. Bd1 {[%emt 0:00:17]} Bxd1 {[%emt 0:00:13]} 44. Rxd2 {[%emt 0:00:10]} Bc2 {[%emt 0:02:02]} 45. Kg2 {[%emt 0:00:15]} Ke6 {[%emt 0:02:28]} 46. h5 {[%emt 0:01:07]} d4 {[%emt 0:02:53]} 47. h6 {[%emt 0:01:22]} Kf6 {[%emt 0:00:37]} 48. Kf3 {[%emt 0:00:12]} Kg6 {[%emt 0:00:12]} 49. Ke4 {[%emt 0:00:15]} Kxh6 {[%emt 0:00:49]} 50. Kxd4 {[%emt 0:00:10]} Kg5 {[%emt 0:00:08]} 51. Rxd3 {[%emt 0:00:18]} Bxd3 {[%emt 0:00:23]} 52. Kxd3 {[%emt 0:00:07]} Kf6 {[%emt 0:00:29]} 53. Kc4 {[%emt 0:00:07]} Ke7 {[%emt 0:01:33]} 54. Kc5 {[%emt 0:00:13]} a5 {[%emt 0:00:04]} 55. b5 {[%emt 0:00:13]} Kd8 {[%emt 0:00:06]} 56. Kb6 {[%emt 0:00:09]} Kc8 {[%emt 0:00:23]} 57. Kxa5 {[%emt 0:00:07]} Kb7 {[%emt 0:00:05]} 58. b6 {[%emt 0:00:12]} Kb8 59. Kb5 {[%emt 0:00:09]} Kb7 {[%emt 0:00:16]} 1-0

[Event "European School-ch 2019"]
[Site "Mamaia"]
[Date "2019.06.02"]
[Round "3.32"]
[White "Utlu, Mustafa Ali"]
[Black "Dias, Ruwan"]
[Result "1-0"]
[ECO "D35"]
[WhiteElo "1148"]
[BlackElo "1359"]
[Annotator "NA"]
[PlyCount "69"]
[EventDate "2019.05.31"]
[EventType "swiss"]
[EventCountry "ROU"]
[SourceTitle "playchess.com"]
[Source "ChessBase"]
[SourceQuality "1"]
[TimeControl "40/5400+30:1800+30"]

1. d4 {[%emt 0:00:00]} d5 {[%emt 0:00:00]} 2. c4 {[%emt 0:00:00]} e6 {[%emt 0:00:00]} 3. Nc3 {[%emt 0:00:16]} Nf6 {[%emt 0:00:00]} 4. cxd5 {[%emt 0:00:11]} exd5 {[%emt 0:00:00]} 5. Bg5 {[%emt 0:00:11]} Be7 {[%emt 0:00:10]} 6. e3 {[%emt 0:00:18]} O-O {[%emt 0:00:07]} 7. Bd3 {[%emt 0:00:15]} c5 {[%emt 0:00:52]} 8. dxc5 {[%emt 0:00:25]} Nc6 {[%emt 0:00:38]} 9. Nf3 {[%emt 0:01:05]} h6 {[%emt 0:04:16]} 10. Bh4 {[%emt 0:05:42]} Bxc5 {[%emt 0:01:29]} 11. Nxd5 {[%emt 0:03:23]} Qa5+ {[%emt 0:02:43]} 12. Nc3 {[%emt 0:01:10]} Nd5 {[%emt 0:05:54]} 13. O-O {[%emt 0:13:27]} Nxc3 {[%emt 0:03:51]} 14. bxc3 {[%emt 0:00:13]} Bg4 {[%emt 0:07:27]} 15. Qb3 {[%emt 0:02:16]} Bxf3 {[%emt 0:03:10]} 16. gxf3 {[%emt 0:00:26]} Bb6 {[%emt 0:01:25]} 17. Kh1 {[%emt 0:01:53]} Qh5 {[%emt 0:01:31]} 18. Bg3 {[%emt 0:04:57]} Qxf3+ {[%emt 0:00:19]} 19. Kg1 {[%emt 0:00:09]} Rad8 {[%emt 0:03:39]} 20. Qc2 {[%emt 0:02:54]} Ba5 {[%emt 0:06:33]} 21. Rab1 {[%emt 0:01:16]} b6 {[%emt 0:04:43]} 22. Be4 {[%emt 0:02:08]} Qf6 {[%emt 0:00:43]} 23. Qa4 {[%emt 0:07:52]} Ne7 {[%emt 0:01:20]} 24. Rfd1 {[%emt 0:01:45]} Rxd1+ {[%emt 0:01:48]} 25. Rxd1 {[%emt 0:00:14]} Qxc3 {[%emt 0:07:05]} 26. Qd7 {[%emt 0:02:15]} Ng6 {[%emt 0:06:30]} 27. Bd6 {[%emt 0:06:33]} Rc8 {[%emt 0:09:31]} 28. Bxg6 {[%emt 0:01:04]} fxg6 {[%emt 0:00:22]} 29. Be5 {[%emt 0:00:17]} Qxe5 {[%emt 0:01:09]} 30. Qxc8+ {[%emt 0:00:08]} Kh7 {[%emt 0:00:13]} 31. Qg4 {[%emt 0:01:46]} Qb2 {[%emt 0:01:28]} 32. Rd6 {[%emt 0:01:50]} Qb1+ {[%emt 0:00:36]} 33. Kg2 {[%emt 0:00:13]} Bb4 {[%emt 0:00:20]} 34. Re6 {[%emt 0:01:20]} g5 {[%emt 0:00:25]} 35. Qe4+ {[%emt 0:00:14]} 1-0

[Event "European School-ch 2019"]
[Site "Mamaia"]
[Date "2019.06.02"]
[Round "3.34"]
[White "Lintes, Albert-Ioan"]
[Black "Anghelescu, Teodor-Stefan"]
[Result "0-1"]
[ECO "A45"]
[WhiteElo "1280"]
[BlackElo "1266"]
[Annotator "NA"]
[PlyCount "148"]
[EventDate "2019.05.31"]
[EventType "swiss"]
[EventCountry "ROU"]
[SourceTitle "playchess.com"]
[Source "ChessBase"]
[SourceQuality "1"]
[TimeControl "40/5400+30:1800+30"]

1. d4 {[%emt 0:00:10]} Nf6 {[%emt 0:00:00]} 2. Bf4 {[%emt 0:01:07]} c5 {[%emt 0:00:00]} 3. d5 {[%emt 0:01:18]} Qb6 {[%emt 0:00:49]} 4. Nc3 {[%emt 0:01:03]} d6 {[%emt 0:01:16]} 5. Qd2 {[%emt 0:03:24]} g6 {[%emt 0:01:07]} 6. e4 {[%emt 0:02:05]} Bg7 {[%emt 0:00:21]} 7. Nf3 {[%emt 0:00:55]} Bg4 {[%emt 0:00:31]} 8. Bc4 {[%emt 0:00:49]} a6 {[%emt 0:02:41]} 9. e5 {[%emt 0:02:04]} dxe5 {[%emt 0:02:15]} 10. Nxe5 {[%emt 0:00:54]} Nbd7 {[%emt 0:03:27]} 11. Nxd7 {[%emt 0:01:02]} Nxd7 {[%emt 0:05:29]} 12. f3 {[%emt 0:00:08]} Qxb2 {[%emt 0:00:57]} 13. Rb1 {[%emt 0:00:52]} Qxc3 {[%emt 0:00:47]} 14. Qxc3 {[%emt 0:01:12]} Bxc3+ {[%emt 0:00:38]} 15. Kd1 {[%emt 0:00:07]} Bxf3+ {[%emt 0:00:31]} 16. gxf3 {[%emt 0:00:11]} b5 {[%emt 0:00:21]} 17. Bd3 {[%emt 0:01:39]} Be5 {[%emt 0:00:57]} 18. Be3 {[%emt 0:00:53]} c4 {[%emt 0:02:26]} 19. Be2 {[%emt 0:00:54]} Nf6 {[%emt 0:00:47]} 20. f4 {[%emt 0:00:40]} Bc7 {[%emt 0:00:13]} 21. Bf3 {[%emt 0:00:20]} Rd8 {[%emt 0:00:43]} 22. Bd4 {[%emt 0:01:38]} O-O {[%emt 0:00:32]} 23. Bxf6 {[%emt 0:00:21]} exf6 {[%emt 0:00:07]} 24. f5 {[%emt 0:00:43]} Rfe8 {[%emt 0:05:57]} 25. a4 {[%emt 0:00:51]} Re3 {[%emt 0:03:13]} 26. Bg2 {[%emt 0:02:25]} Rb8 {[%emt 0:00:52]} 27. Kd2 {[%emt 0:00:51]} Bf4 {[%emt 0:01:24]} 28. Kd1 {[%emt 0:01:06]} bxa4 {[%emt 0:01:08]} 29. Ra1 {[%emt 0:00:39]} a3 {[%emt 0:00:26]} 30. Rf1 {[%emt 0:00:23]} Bg5 {[%emt 0:01:13]} 31. Rf3 {[%emt 0:01:10]} a2 {[%emt 0:00:59]} 32. Rxe3 {[%emt 0:01:41]} Rb1+ {[%emt 0:01:11]} 33. Ke2 {[%emt 0:00:12]} Rxa1 {[%emt 0:00:10]} 34. Ra3 {[%emt 0:00:07]} Bh4 {[%emt 0:00:54]} 35. Kf3 {[%emt 0:00:38]} Rd1 {[%emt 0:00:54]} 36. Rxa2 {[%emt 0:00:25]} Rxd5 {[%emt 0:00:18]} 37. fxg6 {[%emt 0:00:17]} hxg6 {[%emt 0:00:52]} 38. Rxa6 {[%emt 0:00:14]} Rf5+ {[%emt 0:00:38]} 39. Kg4 {[%emt 0:00:35]} Rg5+ {[%emt 0:00:40]} 40. Kh3 {[%emt 0:00:00]} Rh5 {[%emt 0:00:00]} 41. Kg4 {[%emt 0:00:50]} c3 {[%emt 0:03:27]} 42. Bf1 {[%emt 0:02:28]} f5+ {[%emt 0:01:07]} 43. Kf3 {[%emt 0:01:13]} Be1 {[%emt 0:06:05]} 44. h3 {[%emt 0:01:13]} Rh4 {[%emt 0:03:36]} 45. Ra1 {[%emt 0:01:26]} Bd2 {[%emt 0:00:16]} 46. Kg3 {[%emt 0:00:58]} Re4 {[%emt 0:01:28]} 47. Bd3 {[%emt 0:00:42]} Re3+ {[%emt 0:01:05]} 48. Kg2 {[%emt 0:00:13]} Rxd3 {[%emt 0:00:51]} 49. cxd3 {[%emt 0:02:32]} c2 {[%emt 0:00:14]} 50. d4 {[%emt 0:00:24]} c1=Q {[%emt 0:00:17]} 51. Rxc1 {[%emt 0:00:10]} Bxc1 {[%emt 0:00:05]} 52. Kf3 {[%emt 0:00:14]} g5 {[%emt 0:00:15]} 53. d5 {[%emt 0:01:09]} Kf8 {[%emt 0:00:07]} 54. Kg3 {[%emt 0:00:23]} Ke7 {[%emt 0:00:05]} 55. h4 {[%emt 0:00:08]} gxh4+ {[%emt 0:00:09]} 56. Kxh4 {[%emt 0:00:06]} f4 {[%emt 0:00:03]} 57. Kh3 {[%emt 0:00:33]} Kd6 {[%emt 0:00:10]} 58. Kg2 {[%emt 0:00:08]} Kxd5 59. Kf3 {[%emt 0:00:07]} f5 {[%emt 0:00:08]} 60. Kf2 {[%emt 0:00:05]} Ke4 {[%emt 0:00:03]} 61. Ke2 {[%emt 0:00:12]} f3+ {[%emt 0:00:54]} 62. Kf2 {[%emt 0:00:07]} Kf4 {[%emt 0:00:24]} 63. Kf1 {[%emt 0:00:08]} Kg3 {[%emt 0:00:08]} 64. Kg1 {[%emt 0:00:10]} f2+ {[%emt 0:00:17]} 65. Kf1 {[%emt 0:00:06]} Bd2 {[%emt 0:00:07]} 66. Ke2 {[%emt 0:00:19]} Kg2 {[%emt 0:00:09]} 67. Kd3 {[%emt 0:00:14]} f1=Q+ {[%emt 0:00:06]} 68. Kd4 {[%emt 0:00:03]} Qd1 {[%emt 0:00:16]} 69. Ke5 {[%emt 0:00:08]} f4 {[%emt 0:00:07]} 70. Ke4 {[%emt 0:00:08]} f3 {[%emt 0:00:04]} 71. Ke5 {[%emt 0:00:04]} f2 {[%emt 0:00:04]} 72. Ke4 {[%emt 0:00:02]} f1=Q {[%emt 0:00:06]} 73. Ke5 {[%emt 0:00:13]} Bc3+ {[%emt 0:00:12]} 74. Ke4 {[%emt 0:00:06]} Qdd3# {[%emt 0:00:06]} 0-1

[Event "European School-ch 2019"]
[Site "Mamaia"]
[Date "2019.06.02"]
[Round "3.35"]
[White "Paunescu, Stefan-Vlad"]
[Black "Savu, Victor-Xavier"]
[Result "1-0"]
[ECO "C55"]
[WhiteElo "1358"]
[BlackElo "1047"]
[Annotator "NA"]
[PlyCount "89"]
[EventDate "2019.05.31"]
[EventType "swiss"]
[EventCountry "ROU"]
[SourceTitle "playchess.com"]
[Source "ChessBase"]
[SourceQuality "1"]
[TimeControl "40/5400+30:1800+30"]

1. e4 {[%emt 0:00:00]} e5 {[%emt 0:00:00]} 2. Nf3 {[%emt 0:00:00]} Nc6 {[%emt 0:00:00]} 3. Bc4 {[%emt 0:00:00]} Nf6 {[%emt 0:00:00]} 4. d4 {[%emt 0:00:00]} exd4 {[%emt 0:00:00]} 5. O-O {[%emt 0:00:00]} d6 {[%emt 0:00:22]} 6. Nxd4 {[%emt 0:00:01]} Nxd4 {[%emt 0:00:16]} 7. Qxd4 {[%emt 0:00:07]} Be7 {[%emt 0:00:14]} 8. Nc3 {[%emt 0:00:33]} O-O {[%emt 0:00:13]} 9. Be3 {[%emt 0:00:45]} Be6 {[%emt 0:00:35]} 10. Bb3 {[%emt 0:00:53]} Ng4 {[%emt 0:01:09]} 11. Bf4 {[%emt 0:00:59]} Bf6 {[%emt 0:00:54]} 12. Qd2 {[%emt 0:00:32]} Ne5 {[%emt 0:00:41]} 13. Bg3 {[%emt 0:02:41]} Qe7 {[%emt 0:01:50]} 14. Rad1 {[%emt 0:02:42]} Nc6 {[%emt 0:00:22]} 15. Rfe1 {[%emt 0:03:27]} Nd4 {[%emt 0:00:32]} 16. Nd5 {[%emt 0:01:09]} Bxd5 {[%emt 0:00:51]} 17. Bxd5 {[%emt 0:01:02]} Ne6 {[%emt 0:02:19]} 18. c3 {[%emt 0:01:35]} Rab8 {[%emt 0:01:27]} 19. h3 {[%emt 0:00:48]} Be5 {[%emt 0:01:10]} 20. f4 {[%emt 0:01:39]} Bf6 {[%emt 0:01:13]} 21. b4 {[%emt 0:01:41]} c6 {[%emt 0:02:14]} 22. Bb3 {[%emt 0:00:28]} Rbd8 {[%emt 0:00:45]} 23. f5 {[%emt 0:00:19]} Nc7 {[%emt 0:00:44]} 24. Bxd6 {[%emt 0:03:02]} Qd7 {[%emt 0:00:46]} 25. Qf4 {[%emt 0:00:22]} Nd5 {[%emt 0:02:23]} 26. Bxd5 {[%emt 0:00:48]} Qxd6 {[%emt 0:00:27]} 27. Bxf7+ {[%emt 0:00:14]} Rxf7 {[%emt 0:02:09]} 28. Rxd6 {[%emt 0:00:14]} Rxd6 {[%emt 0:00:30]} 29. Qxd6 {[%emt 0:00:06]} Bxc3 {[%emt 0:00:10]} 30. Rd1 {[%emt 0:00:22]} Rf8 {[%emt 0:00:32]} 31. Qe6+ {[%emt 0:00:18]} Kh8 {[%emt 0:00:09]} 32. Qe7 {[%emt 0:00:08]} Rg8 {[%emt 0:00:44]} 33. Rd8 {[%emt 0:00:08]} h6 {[%emt 0:00:30]} 34. e5 {[%emt 0:00:22]} Kh7 {[%emt 0:00:29]} 35. f6 {[%emt 0:00:20]} Bxb4 {[%emt 0:00:42]} 36. Rxg8 {[%emt 0:00:16]} Bxe7 {[%emt 0:00:11]} 37. Rxg7+ {[%emt 0:00:08]} Kh8 {[%emt 0:00:07]} 38. Rxe7 {[%emt 0:00:12]} c5 {[%emt 0:00:27]} 39. f7 {[%emt 0:00:58]} Kg7 {[%emt 0:00:10]} 40. e6 {[%emt 0:00:00]} c4 {[%emt 0:00:00]} 41. Re8 {[%emt 0:00:44]} a6 {[%emt 0:00:13]} 42. f8=Q+ {[%emt 0:00:16]} Kg6 {[%emt 0:00:09]} 43. Qf7+ {[%emt 0:00:08]} Kg5 {[%emt 0:00:05]} 44. Rg8+ {[%emt 0:00:08]} Kh4 {[%emt 0:00:18]} 45. Rg4# 1-0

[Event "European School-ch 2019"]
[Site "Mamaia"]
[Date "2019.06.02"]
[Round "3.41"]
[White "Mgeladze, Kesaria"]
[Black "Antal, Iris-Ileana"]
[Result "1-0"]
[ECO "B10"]
[WhiteElo "1322"]
[BlackElo "1057"]
[Annotator "NA"]
[PlyCount "65"]
[EventDate "2019.05.31"]
[EventType "swiss"]
[EventCountry "ROU"]
[SourceTitle "playchess.com"]
[Source "ChessBase"]
[SourceQuality "1"]
[TimeControl "40/5400+30:1800+30"]

1. e4 {[%emt 0:00:00]} c6 {[%emt 0:00:00]} 2. g3 {[%emt 0:00:00]} d5 {[%emt 0:00:00]} 3. Bg2 {[%emt 0:00:00]} dxe4 {[%emt 0:00:58]} 4. Nc3 {[%emt 0:00:00]} Nf6 {[%emt 0:01:02]} 5. Nxe4 {[%emt 0:00:07]} Nxe4 {[%emt 0:00:58]} 6. Bxe4 {[%emt 0:00:09]} g6 {[%emt 0:00:50]} 7. Bg2 {[%emt 0:00:21]} Bg7 {[%emt 0:02:03]} 8. Nf3 {[%emt 0:00:38]} O-O {[%emt 0:00:33]} 9. O-O {[%emt 0:00:18]} Nd7 {[%emt 0:00:42]} 10. d4 {[%emt 0:01:02]} Nf6 {[%emt 0:00:28]} 11. c4 {[%emt 0:10:19]} Bf5 {[%emt 0:02:53]} 12. Bf4 {[%emt 0:06:16]} Qb6 {[%emt 0:09:35]} 13. Qe2 {[%emt 0:09:46]} Be4 {[%emt 0:15:08]} 14. Rfd1 {[%emt 0:10:41]} Rad8 {[%emt 0:07:38]} 15. Be3 {[%emt 0:18:48]} Qb4 {[%emt 0:18:40]} 16. a3 {[%emt 0:04:21]} Qb3 {[%emt 0:06:46]} 17. Rac1 {[%emt 0:12:57]} Rfe8 {[%emt 0:04:16]} 18. h3 {[%emt 0:06:23]} Nd7 {[%emt 0:03:57]} 19. Nd2 {[%emt 0:01:17]} Qxb2 {[%emt 0:00:52]} 20. Bxe4 {[%emt 0:00:12]} Bxd4 {[%emt 0:01:40]} 21. Rb1 {[%emt 0:00:53]} Qc3 {[%emt 0:01:06]} 22. Rb3 {[%emt 0:00:30]} Qa5 {[%emt 0:00:23]} 23. Bxd4 {[%emt 0:00:14]} Nf6 {[%emt 0:00:47]} 24. Bc3 {[%emt 0:00:18]} Qa6 {[%emt 0:01:10]} 25. Rdb1 {[%emt 0:00:42]} Ra8 {[%emt 0:02:00]} 26. Rxb7 {[%emt 0:00:59]} Qxa3 {[%emt 0:00:18]} 27. Bb4 {[%emt 0:02:10]} Qa2 {[%emt 0:01:35]} 28. Bxc6 {[%emt 0:00:19]} Rec8 {[%emt 0:02:05]} 29. Qxe7 {[%emt 0:00:48]} Rf8 {[%emt 0:00:58]} 30. Qxf6 {[%emt 0:00:12]} Rab8 {[%emt 0:01:31]} 31. Bc3 {[%emt 0:00:11]} Qxb1+ {[%emt 0:02:29]} 32. Nxb1 {[%emt 0:00:09]} Rxb7 {[%emt 0:00:53]} 33. Qg7# {[%emt 0:00:04]} 1-0

[Event "European School-ch 2019"]
[Site "Mamaia"]
[Date "2019.06.02"]
[Round "3.43"]
[White "Ismayilova, Khanim"]
[Black "Zarkua, Anastasia"]
[Result "1/2-1/2"]
[ECO "A85"]
[WhiteElo "1225"]
[BlackElo "1108"]
[Annotator "NA"]
[PlyCount "124"]
[EventDate "2019.05.31"]
[EventType "swiss"]
[EventCountry "ROU"]
[SourceTitle "playchess.com"]
[Source "ChessBase"]
[SourceQuality "1"]
[TimeControl "40/5400+30:1800+30"]

1. d4 {[%emt 0:00:00]} f5 {[%emt 0:00:00]} 2. c4 {[%emt 0:00:00]} Nf6 {[%emt 0:00:00]} 3. Nc3 {[%emt 0:00:00]} g6 {[%emt 0:00:04]} 4. Nf3 {[%emt 0:00:05]} Bg7 {[%emt 0:00:25]} 5. Bf4 {[%emt 0:00:09]} O-O {[%emt 0:00:17]} 6. e3 {[%emt 0:00:04]} d6 {[%emt 0:00:19]} 7. Be2 {[%emt 0:01:23]} c6 {[%emt 0:00:24]} 8. d5 {[%emt 0:04:43]} c5 {[%emt 0:01:51]} 9. O-O {[%emt 0:00:32]} Nbd7 {[%emt 0:00:57]} 10. Qc2 {[%emt 0:02:32]} Qb6 {[%emt 0:05:36]} 11. Rab1 {[%emt 0:02:11]} a6 {[%emt 0:01:35]} 12. Ng5 {[%emt 0:01:21]} Ne5 {[%emt 0:02:08]} 13. Nf3 {[%emt 0:05:41]} Nxf3+ {[%emt 0:01:15]} 14. Bxf3 {[%emt 0:02:11]} e5 {[%emt 0:03:38]} 15. dxe6 {[%emt 0:01:57]} Bxe6 {[%emt 0:00:18]} 16. Na4 {[%emt 0:02:09]} Qc7 {[%emt 0:00:46]} 17. Qd3 {[%emt 0:01:51]} Rad8 {[%emt 0:05:06]} 18. Rfd1 {[%emt 0:00:56]} Ne8 {[%emt 0:01:00]} 19. Qb3 {[%emt 0:01:01]} b5 {[%emt 0:01:56]} 20. Nc3 {[%emt 0:00:48]} Bxc4 {[%emt 0:00:34]} 21. Bd5+ {[%emt 0:08:50]} Bxd5 {[%emt 0:00:44]} 22. Nxd5 {[%emt 0:01:23]} Qf7 {[%emt 0:01:33]} 23. Qa3 {[%emt 0:01:29]} Qa7 {[%emt 0:02:31]} 24. Qb3 {[%emt 0:02:39]} c4 {[%emt 0:03:28]} 25. Qb4 {[%emt 0:00:13]} Kh8 {[%emt 0:04:13]} 26. b3 {[%emt 0:01:57]} cxb3 {[%emt 0:03:09]} 27. Rxb3 {[%emt 0:00:44]} Qc5 {[%emt 0:02:17]} 28. Qa5 {[%emt 0:00:21]} Ra8 {[%emt 0:06:50]} 29. Nb6 {[%emt 0:02:30]} Ra7 {[%emt 0:01:09]} 30. Rbd3 {[%emt 0:02:30]} Be5 {[%emt 0:03:04]} 31. Rd5 {[%emt 0:01:13]} Qc2 {[%emt 0:05:49]} 32. Bxe5+ {[%emt 0:01:37]} dxe5 {[%emt 0:00:18]} 33. Qa3 {[%emt 0:02:11]} Rff7 {[%emt 0:01:52]} 34. Rc1 {[%emt 0:02:14]} Qe2 {[%emt 0:01:40]} 35. Rxe5 {[%emt 0:00:21]} Nf6 {[%emt 0:01:12]} 36. Nd5 {[%emt 0:10:14]} Rad7 {[%emt 0:02:52]} 37. Qb3 {[%emt 0:00:21]} Ng4 {[%emt 0:03:36]} 38. Re8+ {[%emt 0:00:38]} Kg7 {[%emt 0:00:24]} 39. Qc3+ {[%emt 0:00:14]} Nf6 {[%emt 0:00:31]} 40. Re1 {[%emt 0:00:00]} Qc4 {[%emt 0:00:00]} 41. Qxc4 {[%emt 0:03:47]} bxc4 {[%emt 0:01:57]} 42. Nxf6 {[%emt 0:00:05]} Rxf6 {[%emt 0:00:14]} 43. Rc8 {[%emt 0:00:05]} Rd2 {[%emt 0:00:35]} 44. Rxc4 {[%emt 0:00:24]} Rxa2 {[%emt 0:00:27]} 45. Rc7+ {[%emt 0:00:04]} Rf7 {[%emt 0:00:16]} 46. Rxf7+ {[%emt 0:00:08]} Kxf7 {[%emt 0:00:06]} 47. Rc1 {[%emt 0:00:06]} Kf6 {[%emt 0:00:15]} 48. g3 {[%emt 0:00:01]} a5 {[%emt 0:00:23]} 49. Rc7 {[%emt 0:00:19]} h6 {[%emt 0:00:41]} 50. Rc6+ {[%emt 0:00:04]} Kg5 {[%emt 0:00:06]} 51. h4+ {[%emt 0:00:22]} Kh5 {[%emt 0:00:25]} 52. Kg2 {[%emt 0:00:08]} g5 {[%emt 0:01:16]} 53. hxg5 {[%emt 0:00:36]} Kxg5 {[%emt 0:00:32]} 54. Ra6 {[%emt 0:00:19]} h5 {[%emt 0:00:51]} 55. Ra8 {[%emt 0:00:11]} a4 {[%emt 0:00:15]} 56. Ra6 {[%emt 0:00:07]} h4 {[%emt 0:00:47]} 57. gxh4+ {[%emt 0:00:16]} Kxh4 {[%emt 0:00:07]} 58. Rh6+ {[%emt 0:00:17]} Kg5 {[%emt 0:00:09]} 59. Ra6 {[%emt 0:00:08]} a3 {[%emt 0:00:23]} 60. Ra4 {[%emt 0:00:07]} Kf6 {[%emt 0:00:18]} 61. Kf3 {[%emt 0:00:23]} Ke5 {[%emt 0:00:22]} 62. Ra5+ {[%emt 0:00:22]} Kf6 {[%emt 0:00:55]} 1/2-1/2

[Event "European School-ch 2019"]
[Site "Mamaia"]
[Date "2019.06.02"]
[Round "3.45"]
[White "Zhapova, Yana"]
[Black "Rasheva, Nora"]
[Result "1/2-1/2"]
[ECO "B17"]
[WhiteElo "1804"]
[BlackElo "1473"]
[Annotator "NA"]
[PlyCount "90"]
[EventDate "2019.05.31"]
[EventType "swiss"]
[EventCountry "ROU"]
[SourceTitle "playchess.com"]
[Source "ChessBase"]
[SourceQuality "1"]
[TimeControl "40/5400+30:1800+30"]

1. e4 {[%emt 0:00:00]} c6 {[%emt 0:00:00]} 2. d4 {[%emt 0:00:00]} d5 {[%emt 0:00:00]} 3. Nd2 {[%emt 0:01:43]} dxe4 {[%emt 0:00:24]} 4. Nxe4 {[%emt 0:00:08]} Nd7 {[%emt 0:00:30]} 5. Bc4 {[%emt 0:04:47]} Ngf6 {[%emt 0:02:07]} 6. Nxf6+ {[%emt 0:01:00]} Nxf6 {[%emt 0:00:12]} 7. c3 {[%emt 0:02:13]} Bf5 {[%emt 0:00:25]} 8. Qb3 {[%emt 0:00:50]} e6 {[%emt 0:06:45]} 9. Qxb7 {[%emt 0:01:48]} Qc8 {[%emt 0:12:01]} 10. Ba6 {[%emt 0:04:55]} Qxb7 {[%emt 0:21:54]} 11. Bxb7 {[%emt 0:00:17]} Rb8 {[%emt 0:03:38]} 12. Bxc6+ {[%emt 0:00:10]} Kd8 {[%emt 0:00:07]} 13. Nf3 {[%emt 0:02:33]} h6 {[%emt 0:05:43]} 14. Ne5 {[%emt 0:01:50]} Ke7 {[%emt 0:03:29]} 15. b3 {[%emt 0:03:02]} Bg6 {[%emt 0:00:33]} 16. Bf4 {[%emt 0:02:42]} Rc8 {[%emt 0:02:02]} 17. c4 {[%emt 0:02:04]} Be4 {[%emt 0:03:23]} 18. Bxe4 {[%emt 0:00:55]} Nxe4 {[%emt 0:00:10]} 19. f3 {[%emt 0:00:37]} Nf6 {[%emt 0:01:48]} 20. Kf2 {[%emt 0:01:00]} g5 {[%emt 0:00:47]} 21. Bd2 {[%emt 0:00:37]} Nd7 {[%emt 0:02:30]} 22. Nxd7 {[%emt 0:01:41]} Kxd7 {[%emt 0:00:16]} 23. Rad1 {[%emt 0:00:20]} Bg7 {[%emt 0:00:27]} 24. Be3 {[%emt 0:07:16]} Rhd8 {[%emt 0:04:42]} 25. d5 {[%emt 0:01:53]} Ke8 {[%emt 0:00:31]} 26. dxe6 {[%emt 0:00:20]} fxe6 {[%emt 0:00:25]} 27. Ke2 {[%emt 0:01:58]} Bc3 {[%emt 0:04:34]} 28. h4 {[%emt 0:06:21]} Bf6 {[%emt 0:03:39]} 29. hxg5 {[%emt 0:00:55]} hxg5 {[%emt 0:00:21]} 30. Rh6 {[%emt 0:03:09]} Rxd1 {[%emt 0:00:20]} 31. Kxd1 {[%emt 0:00:15]} Kf7 {[%emt 0:01:02]} 32. Rh7+ {[%emt 0:00:17]} Bg7 {[%emt 0:00:57]} 33. Bd4 {[%emt 0:01:44]} Rd8 {[%emt 0:00:48]} 34. Rxg7+ {[%emt 0:00:06]} Kf8 {[%emt 0:00:14]} 35. Rxa7 {[%emt 0:00:55]} Rxd4+ {[%emt 0:00:04]} 36. Ke2 {[%emt 0:00:14]} Rd6 {[%emt 0:00:24]} 37. b4 {[%emt 0:00:20]} Rc6 {[%emt 0:00:13]} 38. Kd3 {[%emt 0:01:35]} e5 {[%emt 0:00:07]} 39. Ra5 {[%emt 0:00:37]} Re6 {[%emt 0:00:05]} 40. Ke4 {[%emt 0:00:00]} Kf7 {[%emt 0:00:00]} 41. Rxe5 {[%emt 0:00:58]} Ra6 {[%emt 0:00:33]} 42. b5 {[%emt 0:01:29]} Rxa2 {[%emt 0:00:07]} 43. b6 {[%emt 0:00:11]} Ra8 {[%emt 0:00:17]} 44. c5 {[%emt 0:00:40]} Rb8 {[%emt 0:00:08]} 45. Kd5 {[%emt 0:00:11]} Rd8+ {[%emt 0:00:15]} 1/2-1/2